bitfinex-derivatives/quotes_ETHF0:USTF0_20250114
["timestamp","ask_amount","ask_price","bid_price","bid_amount"]
[1736866479448,1.65,3192.8,3192.4,3.2078]
[1736866479956,3.40266157,3192.7,3192.4,3.2078]
[1736866481055,3.88816157,3192.7,3192.4,3.2078]
[1736866481250,0.31333,3192.6,3192.4,3.2078]
[1736866481552,3.63623523,3192.5,3192.4,3.2078]
[1736866482451,3.40100812,3192.6,3192.4,3.2078]
[1736866482753,0.4855,3192.7,3192.4,3.2078]
[1736866482958,3.26293846,3192.6,3192.4,3.2078]
[1736866483154,3.57626846,3192.6,3192.4,3.2078]
[1736866483655,3.26293846,3192.6,3192.4,3.2078]
[1736866483956,3.66158345,3193.1,3192.0,3.2078]
[1736866484158,3.66158345,3193.1,3192.5,40.8]
[1736866484455,3.2078,3192.6,3191.9,3.2078]
[1736866484855,3.2078,3192.6,3192.0,40.8]
[1736866485055,3.66158345,3193.1,3192.4,3.2078]
[1736866485450,3.43403151,3193.0,3192.4,3.2078]
[1736866486250,3.43403151,3193.0,3192.0,44.0078]
[1736866486751,3.43403151,3193.0,3192.4,3.2078]
[1736866486955,3.43403151,3193.0,3192.5,0.4839]
[1736866487151,3.43403151,3193.0,3192.8,3.2078]
[1736866487458,3.43403151,3193.0,3192.5,0.4839]
[1736866489653,0.4831,3193.5,3192.5,0.4839]
[1736866489850,3.2078,3194.1,3193.2,3.2078]
[1736866490051,0.4538,3194.2,3193.2,3.52107]
[1736866490257,3.39970477,3194.1,3193.7,3.2078]
[1736866490561,3.31830624,3194.0,3193.7,3.2078]
[1736866490761,5.3495,3194.4,3193.7,3.2078]
[1736866490961,3.2078,3194.4,3193.7,3.2078]
[1736866491150,3.31830624,3194.7,3193.7,3.2078]
[1736866491350,3.2078,3194.8,3193.8,0.31321]
[1736866491757,3.2078,3194.8,3194.2,3.2078]
[1736866492154,3.2078,3194.8,3194.3,0.4653]
[1736866493361,6.601467,3194.7,3194.2,3.2078]
[1736866493556,3.31830624,3194.7,3194.2,3.2078]
[1736866493759,3.2078,3194.8,3194.2,3.2078]
[1736866494258,3.45776216,3194.7,3194.2,3.2078]
[1736866494959,3.31830624,3194.3,3193.6,3.2078]
[1736866495455,0.25077568,3194.2,3193.6,3.2078]
[1736866495860,3.2078,3194.4,3193.6,3.2078]
[1736866496251,3.53345677,3194.3,3193.6,3.2078]
[1736866496664,3.2078,3194.4,3193.6,3.2078]
[1736866497563,0.4815,3194.6,3193.6,3.2078]
[1736866497863,3.37420786,3194.3,3193.6,3.2078]
[1736866498063,6.6925141,3194.3,3193.6,3.2078]
[1736866498258,0.31317,3194.2,3193.6,3.2078]
[1736866498565,3.37420786,3194.2,3193.6,3.2078]
[1736866499254,3.31830624,3193.9,3193.3,40.8]
[1736866499461,3.63151624,3193.9,3193.2,3.2078]
[1736866499663,4.09173723,3193.8,3193.2,3.2078]
[1736866499862,3.31830624,3193.5,3193.2,3.2078]
[1736866500258,3.3193817,3193.4,3193.2,3.2078]
[1736866500462,3.3193817,3193.4,3192.7,3.2078]
[1736866500967,1.621,3193.5,3193.1,3.2078]
[1736866501163,0.4783,3193.7,3193.1,3.2078]
[1736866501363,3.31830624,3193.9,3193.1,3.2078]
[1736866502068,1.621,3194.3,3193.5,3.2078]
[1736866502069,3.31830624,3194.3,3193.5,3.2078]
[1736866502256,0.9635,3194.5,3193.9,3.2078]
[1736866502656,3.50895789,3194.4,3193.9,3.2078]
[1736866503168,3.31830624,3194.7,3193.9,3.2078]
[1736866503565,3.4933955,3194.6,3193.9,3.521]
[1736866503869,3.2078,3194.8,3194.0,0.31319]
[1736866504266,3.2078,3194.8,3194.3,3.52096]
[1736866504570,3.2078,3194.8,3194.3,3.2078]
[1736866504767,3.2078,3195.2,3194.4,0.31315]
[1736866504969,3.2078,3195.2,3194.5,0.31314]
[1736866505269,3.2078,3195.2,3194.6,0.4834]
[1736866505466,3.2078,3195.2,3194.7,40.8]
[1736866505859,3.22794,3195.7,3194.8,0.31311]
[1736866506065,3.22794,3195.7,3194.7,44.32092]
[1736866506267,3.31830624,3195.5,3194.7,44.0078]
[1736866506466,3.2078,3194.9,3194.7,40.8]
[1736866506770,3.5957524,3194.8,3193.9,3.2078]
[1736866506967,3.2078,3194.5,3193.9,3.2078]
[1736866507268,3.31830624,3194.2,3193.6,0.4853]
[1736866507467,3.31830624,3194.2,3193.4,0.00431751]
[1736866507665,3.52867539,3194.1,3193.4,3.21211751]
[1736866507867,3.52867539,3194.1,3193.8,3.2078]
[1736866508260,0.4679,3194.8,3193.8,3.52101]
[1736866508460,3.2078,3195.3,3194.2,3.2078]
[1736866508666,4.26400624,3195.4,3194.6,3.2078]
[1736866508869,4.26400624,3195.4,3193.4,0.00431751]
[1736866508870,0.31317,3194.3,3193.4,0.00431751]
[1736866509169,6.52610624,3193.8,3193.4,0.00431751]
[1736866509360,6.52610624,3193.8,3193.4,40.80431751]
[1736866509562,3.36125647,3193.7,3193.4,0.00431751]
[1736866509765,3.99918,3194.2,3193.4,0.00431751]
[1736866509766,7.00430624,3194.2,3193.4,0.00431751]
[1736866509968,3.79650624,3194.2,3193.8,3.2078]
[1736866510167,8.14710624,3194.6,3193.8,3.2078]
[1736866510565,3.47133858,3194.3,3193.8,3.2078]
[1736866510766,3.47133858,3194.5,3193.8,3.2078]
[1736866510962,1.621,3194.6,3193.8,3.2078]
[1736866511574,3.39338626,3194.5,3193.8,3.2078]
[1736866511766,3.31830624,3194.2,3193.8,3.2078]
[1736866512166,3.26812811,3194.1,3193.8,3.2078]
[1736866512676,3.26812811,3194.1,3193.4,0.00431751]
[1736866512876,0.4929,3194.0,3193.4,0.00431751]
[1736866513170,6.47592811,3194.1,3193.5,40.8]
[1736866513171,3.2078,3194.1,3193.5,40.8]
[1736866513770,3.2078,3194.1,3193.6,0.31323]
[1736866513972,3.2078,3194.1,3193.7,0.4595]
[1736866514670,3.34741702,3194.0,3193.7,3.6673]
[1736866514877,3.2078,3194.9,3193.9,3.31830624]
[1736866515070,3.2078,3195.3,3194.4,0.31315]
[1736866515264,3.63669705,3195.3,3194.3,3.2078]
[1736866515465,3.31830624,3195.0,3194.5,40.8]
[1736866515667,3.31830624,3195.0,3194.3,3.2078]
[1736866515875,3.80151021,3194.9,3194.3,3.2078]
[1736866516077,0.31311,3194.8,3193.8,3.2078]
[1736866516279,0.74210973,3194.8,3193.9,40.8]
[1736866516477,3.63144624,3194.6,3193.9,40.8]
[1736866516668,3.63144624,3194.6,3193.4,3.70901751]
[1736866516669,3.2078,3194.5,3193.4,3.70901751]
[1736866516874,3.2078,3194.5,3193.4,3.21211751]
[1736866516875,3.31830624,3194.2,3193.4,3.21211751]
[1736866517174,3.2078,3194.1,3193.4,3.21211751]
[1736866517375,3.62281232,3194.1,3193.8,3.2078]
[1736866517577,0.4847,3194.9,3193.9,0.3132]
[1736866517879,0.4847,3194.9,3194.4,3.2078]
[1736866518178,0.4847,3194.9,3193.6,3.31830624]
[1736866518179,3.31830624,3195.3,3194.8,3.2078]
[1736866518376,3.2078,3195.6,3194.8,3.2078]
[1736866518575,3.57086393,3195.4,3195.2,3.2078]
[1736866518880,3.2078,3196.4,3195.3,41.11306]
[1736866519076,0.31297,3196.3,3195.8,3.2078]
[1736866519275,0.31301,3195.9,3195.3,40.8]
[1736866519477,3.2078,3195.6,3195.3,40.8]
[1736866519884,3.2078,3195.6,3194.7,3.2078]
[1736866519885,3.37423291,3195.5,3194.7,3.2078]
[1736866520172,3.31830624,3195.0,3194.7,3.2078]
[1736866520385,3.31830624,3195.0,3193.9,3.2078]
[1736866520386,0.3131,3194.9,3193.9,3.2078]
[1736866520575,3.2078,3194.6,3193.9,3.2078]
[1736866520882,0.89371272,3194.8,3193.9,3.521]
[1736866521181,3.96055077,3194.8,3193.9,3.2078]
[1736866521579,0.4786,3195.2,3194.3,3.2078]
[1736866521777,0.4645,3195.6,3195.1,3.2078]
[1736866522177,0.4645,3195.6,3194.7,3.78410624]
[1736866522382,1.621,3196.0,3194.7,3.78410624]
[1736866522383,1.621,3196.0,3195.1,3.2078]
[1736866522574,3.54185038,3195.5,3195.1,3.2078]
[1736866522776,0.42950103,3195.7,3194.7,0.4658]
[1736866523080,3.66934704,3195.7,3195.0,3.2078]
[1736866523275,0.42950103,3195.7,3195.0,3.2078]
[1736866523482,3.60049989,3195.6,3195.0,3.2078]
[1736866523683,3.2078,3195.8,3195.0,3.2078]
[1736866523874,3.2078,3195.4,3193.8,3.2078]
[1736866524075,3.31830624,3194.7,3193.8,3.2078]
[1736866524274,1.621,3194.6,3193.8,3.2078]
[1736866524485,3.2078,3194.5,3193.8,3.2078]
[1736866524974,3.49999401,3194.4,3193.8,3.2078]
[1736866525583,3.49999401,3194.4,3193.9,40.8]
[1736866525980,0.31315,3194.5,3193.8,3.2078]
[1736866525981,3.26180833,3194.5,3193.8,3.2078]
[1736866526185,0.4982,3194.6,3193.8,3.2078]
[1736866526387,3.31830624,3195.1,3193.8,3.2078]
[1736866526388,1.667,3195.1,3193.9,40.8]
[1736866526684,3.42409774,3194.7,3193.9,40.8]
[1736866527185,2.1247,3195.0,3193.9,40.8]
[1736866527389,3.36646851,3194.6,3193.9,40.8]
[1736866527584,3.2078,3194.5,3193.9,40.8]
[1736866527783,4.8748,3194.9,3193.9,40.8]
[1736866528086,3.36646851,3194.4,3193.9,40.8]
[1736866528382,3.2078,3194.9,3193.9,41.11319]
[1736866528686,3.44399859,3194.8,3194.3,3.2078]
[1736866529584,3.2078,3194.9,3194.3,3.2078]
[1736866530182,3.31830624,3194.7,3193.9,40.8]
[1736866530387,3.31830624,3194.7,3193.8,3.2078]
[1736866530583,0.31316,3194.4,3193.4,3.66891751]
[1736866530885,3.2078,3194.5,3193.5,40.8]
[1736866530886,3.7817516,3194.3,3193.5,40.8]
[1736866531286,0.31317,3194.2,3193.5,40.8]
[1736866531586,3.73448069,3194.2,3193.5,40.8]
[1736866531784,4.16427918,3194.2,3193.5,40.8]
[1736866531985,4.16447116,3194.2,3193.5,40.8]
[1736866532287,3.2078,3194.1,3193.5,40.8]
[1736866532479,3.2078,3194.1,3193.4,0.00431751]
[1736866532686,3.2078,3193.7,3193.4,0.00431751]
[1736866532978,3.2078,3193.7,3193.4,40.80431751]
[1736866533183,3.38181765,3193.6,3193.4,40.80431751]
[1736866533583,3.38181765,3193.6,3193.4,0.00431751]
[1736866533979,3.81174618,3193.6,3193.4,0.00431751]
[1736866534481,3.38181765,3193.6,3193.4,0.00431751]
[1736866534990,3.6811,3193.7,3193.4,0.00431751]
[1736866535390,3.2078,3194.2,3193.4,3.21211751]
[1736866535592,3.2078,3194.2,3193.5,40.8]
[1736866535894,3.29304168,3194.0,3193.5,40.8]
[1736866536189,3.2078,3194.2,3193.6,3.31830624]
[1736866536381,3.2078,3194.2,3193.8,0.31321]
[1736866536581,3.2078,3194.6,3194.0,3.63148624]
[1736866536778,3.2078,3194.6,3194.0,3.31830624]
[1736866537091,3.78535166,3194.5,3193.8,3.2078]
[1736866537283,0.4921,3194.4,3193.5,40.8]
[1736866537683,3.78537166,3194.3,3193.5,40.8]
[1736866537886,3.47221166,3194.3,3193.5,40.8]
[1736866538191,3.47221166,3194.3,3193.8,3.2078]
[1736866539690,4.37379865,3194.5,3193.8,3.2078]
[1736866539894,0.42975927,3194.5,3193.8,3.2078]
[1736866540082,3.60490823,3194.4,3193.8,3.2078]
[1736866540481,4.0346675,3194.5,3193.8,3.2078]
[1736866540692,0.42975927,3194.5,3193.8,3.2078]
[1736866540889,3.63755927,3194.6,3193.8,3.2078]
[1736866541088,3.40665866,3194.4,3193.8,3.2078]
[1736866541290,3.83641793,3194.5,3193.8,3.2078]
[1736866541489,0.42975927,3194.5,3193.8,3.2078]
[1736866541795,3.40665866,3194.4,3193.5,40.8]
[1736866542096,3.63755927,3194.6,3193.5,40.8]
[1736866542097,0.42975927,3194.5,3193.7,3.2078]
[1736866542401,0.42975927,3194.5,3193.8,1.29611]
[1736866542599,4.26570624,3195.1,3194.3,3.2078]
[1736866542600,0.43002705,3195.0,3194.3,3.2078]
[1736866542789,4.1552,3195.1,3194.4,40.8]
[1736866542990,3.48901398,3194.8,3194.4,40.8]
[1736866543288,4.1552,3195.1,3194.4,40.8]
[1736866543491,0.9474,3195.1,3194.4,40.8]
[1736866543686,0.43041709,3195.2,3194.5,0.31314]
[1736866543687,3.3641583,3194.7,3194.5,0.31314]
[1736866543892,1.667,3195.3,3194.6,3.2078]
[1736866544293,3.62408689,3195.2,3194.6,3.2078]
[1736866544895,1.667,3195.3,3194.7,0.4825]
[1736866545394,0.43038935,3195.5,3194.7,0.4825]
[1736866545590,0.4946,3195.7,3194.7,0.4825]
[1736866545894,3.3018517,3195.4,3194.7,0.4825]
[1736866546088,3.3018517,3195.5,3194.7,0.4825]
[1736866546286,0.4946,3195.7,3195.0,3.2078]
[1736866546489,0.43023187,3195.8,3195.0,3.2078]
[1736866546688,3.6177646,3195.5,3195.0,3.2078]
[1736866547096,6.93607084,3195.5,3195.0,3.2078]
[1736866547293,3.2078,3195.1,3194.1,0.4571]
[1736866547596,6.52610624,3195.1,3193.9,3.2078]
[1736866547799,3.31830624,3194.7,3193.9,3.2078]
[1736866547998,0.5018,3194.6,3193.9,3.2078]
[1736866548193,4.10540569,3194.6,3193.9,3.2078]
[1736866548397,0.93557979,3195.0,3194.0,3.31830624]
[1736866548696,3.60360569,3194.8,3194.4,3.2078]
[1736866549097,3.2078,3195.6,3194.4,6.52610624]
[1736866549289,3.2078,3195.6,3194.8,3.2078]
[1736866549489,6.49641396,3195.6,3194.8,3.2078]
[1736866549693,0.43053141,3195.5,3194.8,3.2078]
[1736866549994,3.28861396,3195.6,3195.2,3.2078]
[1736866550190,17.95578182,3196.6,3195.2,3.2078]
[1736866550191,14.63747558,3196.6,3195.2,6.52610624]
[1736866550392,14.63747558,3196.6,3196.2,3.2078]
[1736866550601,3.48889594,3196.5,3195.7,3.2078]
[1736866550894,3.48889594,3196.5,3195.3,3.2078]
[1736866550895,3.31830624,3196.2,3195.3,3.2078]
[1736866551090,3.2078,3195.6,3194.9,3.2078]
[1736866551486,3.31830624,3195.4,3194.9,3.2078]
[1736866551893,3.41899125,3195.3,3194.9,3.2078]
[1736866552486,3.2078,3195.2,3194.5,3.2078]
[1736866552687,3.2078,3195.2,3194.5,44.0078]
[1736866552898,3.41217847,3195.1,3194.5,44.0078]
[1736866554793,3.2078,3195.2,3194.5,44.0078]
[1736866555100,3.57504681,3195.1,3194.5,44.0078]
[1736866555300,3.2078,3195.2,3194.5,44.0078]
[1736866555702,3.45467726,3195.1,3194.5,44.0078]
[1736866556797,0.9882,3195.5,3194.5,44.0078]
[1736866557013,3.3482217,3195.1,3194.5,44.0078]
[1736866557193,3.2078,3195.3,3194.5,44.0078]
[1736866557401,3.60073652,3195.2,3194.5,44.0078]
[1736866557589,3.2078,3195.3,3194.5,44.0078]
[1736866557795,3.63805032,3195.3,3194.5,44.0078]
[1736866557995,3.28765652,3195.1,3194.5,44.0078]
[1736866558196,3.28765652,3195.2,3194.5,44.0078]
[1736866558395,0.4301816,3195.2,3194.5,44.0078]
[1736866558595,3.59245499,3195.2,3194.5,44.0078]
[1736866558795,3.59245499,3195.2,3194.6,0.4841]
[1736866558999,3.59245499,3195.2,3194.9,3.2078]
[1736866559702,3.59245499,3195.2,3194.7,3.2078]
[1736866560403,3.2078,3194.9,3194.5,40.8]
[1736866560700,3.31830624,3194.6,3193.5,3.2078]
[1736866560907,6.52610624,3194.2,3193.5,3.2078]
[1736866561096,6.52610624,3194.2,3193.6,40.8]
[1736866561404,0.13256435,3194.1,3193.6,40.8]
[1736866562500,3.2078,3193.8,3193.4,0.00431751]
[1736866562907,3.4999775,3193.7,3193.5,40.8]
[1736866563305,3.4999775,3193.7,3193.4,0.00431751]
[1736866563612,0.31323,3193.6,3193.4,0.00431751]
[1736866563797,4.41904845,3193.7,3193.4,0.00431751]
[1736866564103,3.59271719,3193.5,3193.4,0.00431751]
[1736866564411,0.31329,3193.0,3191.8,3.2078]
[1736866564608,3.2078,3192.6,3191.8,3.2078]
[1736866564910,3.46858327,3192.5,3191.9,40.8]
[1736866565108,3.78192327,3192.5,3191.9,40.8]
[1736866565308,3.46858327,3192.5,3191.9,40.8]
[1736866566203,3.46858327,3192.5,3192.3,3.2078]
[1736866566402,5.00530624,3192.9,3192.3,3.2078]
[1736866566802,3.33125759,3192.7,3192.3,3.2078]
[1736866566997,3.33125759,3192.8,3192.3,3.2078]
[1736866567202,0.494,3192.7,3192.3,3.2078]
[1736866567610,3.31200062,3192.6,3192.3,3.2078]
[1736866568408,3.31200062,3192.6,3191.9,44.0078]
[1736866568612,3.31830624,3192.4,3191.9,40.8]
[1736866568909,3.2078,3192.3,3191.9,40.8]
[1736866569103,6.91066645,3192.3,3191.9,40.8]
[1736866569304,6.59730645,3192.3,3191.9,40.8]
[1736866569604,6.59730645,3192.3,3190.9,3.2078]
[1736866569605,3.31830624,3192.0,3190.9,3.2078]
[1736866569903,0.494,3192.7,3190.9,3.2078]
[1736866569904,3.31830624,3191.6,3190.9,3.2078]
[1736866570105,1.687,3191.6,3191.0,40.8]
[1736866570310,3.18525144,3191.5,3191.0,40.8]
[1736866570708,3.45886809,3191.6,3191.0,40.8]
[1736866570906,3.2078,3191.7,3191.0,40.8]
[1736866571398,14.9818,3192.7,3191.5,3.2078]
[1736866571605,1.687,3192.6,3192.0,3.2078]
[1736866571811,3.59642748,3192.3,3192.0,3.2078]
[1736866572004,5.28342748,3192.6,3192.0,3.2078]
[1736866572207,3.30775213,3192.5,3192.0,3.2078]
[1736866572611,3.30775213,3192.5,3191.6,3.6778]
[1736866572808,4.99475213,3192.5,3191.6,3.6778]
[1736866573010,1.687,3192.5,3191.6,3.6778]
[1736866573308,3.2078,3192.3,3191.6,3.6778]
[1736866573511,3.2078,3191.9,3191.3,0.5117]
[1736866573712,3.2078,3191.4,3190.5,3.2078]
[1736866574014,3.52129,3191.0,3189.8,3.2078]
[1736866574204,0.5042,3190.9,3190.2,3.2078]
[1736866574407,0.05206265,3190.9,3190.2,3.2078]
[1736866574613,0.05206265,3190.9,3190.6,3.2078]
[1736866575010,4.8948,3191.6,3190.6,3.2078]
[1736866575211,4.8948,3191.6,3191.0,3.2078]
[1736866575412,3.36125093,3191.4,3191.0,3.2078]
[1736866575611,6.52610624,3192.3,3191.4,0.31345]
[1736866575914,3.36125093,3192.3,3191.9,3.2078]
[1736866576114,0.5124,3192.6,3191.9,3.2078]
[1736866576115,1.687,3192.5,3191.9,3.2078]
[1736866576408,3.56150709,3192.3,3191.9,3.2078]
[1736866576616,5.24850709,3192.5,3191.9,3.2078]
[1736866576913,3.56150709,3192.4,3191.9,3.2078]
[1736866577112,2.2004,3192.6,3191.9,3.2078]
[1736866577312,3.44184375,3192.5,3191.9,3.2078]
[1736866577513,3.31830624,3192.3,3191.9,3.2078]
[1736866578013,3.44184375,3192.2,3191.9,3.2078]
[1736866578808,3.44184375,3192.2,3191.9,3.5212]
[1736866579118,5.00630624,3193.1,3192.0,41.312]
[1736866579413,5.00630624,3193.1,3192.6,3.2078]
[1736866579414,3.58005864,3193.0,3192.6,3.2078]
[1736866579613,3.58005864,3193.0,3192.2,3.2078]
[1736866579814,3.58005864,3193.0,3192.6,3.2078]
[1736866580004,3.58005864,3193.0,3192.2,3.2078]
[1736866580207,3.58005864,3193.0,3192.2,2.8148]
[1736866580409,3.58005864,3193.0,3192.6,3.2078]
[1736866581019,3.41359245,3193.1,3192.6,3.2078]
[1736866581320,3.2078,3193.2,3192.6,3.2078]
[1736866581625,3.2078,3193.6,3193.0,3.2078]
[1736866582011,3.37140262,3193.5,3193.0,3.2078]
[1736866583323,3.31830624,3193.6,3193.0,3.2078]
[1736866583821,3.5265565,3193.5,3193.0,3.2078]
[1736866584522,6.52610624,3194.4,3193.4,3.52105]
[1736866584915,3.51274848,3193.9,3193.4,3.2078]
[1736866585111,6.52610624,3194.4,3193.4,3.2078]
[1736866585316,3.2078,3194.4,3193.9,0.3132]
[1736866585616,0.02119,3194.6,3194.3,3.2078]
[1736866586015,3.43426651,3194.5,3194.3,3.2078]
[1736866586215,0.02119,3194.6,3194.3,3.2078]
[1736866586714,0.02119,3194.6,3194.4,0.31315]
[1736866586910,0.02119,3194.6,3194.3,3.2078]
[1736866588025,0.02119,3194.6,3194.4,0.31315]
[1736866588523,0.02119,3194.6,3194.3,3.2078]
[1736866588728,0.02119,3194.6,3194.4,0.31315]
[1736866589026,3.2078,3195.5,3194.4,0.31315]
[1736866589219,3.2078,3195.9,3195.1,3.2078]
[1736866589419,3.51560234,3195.4,3195.1,3.2078]
[1736866589721,3.51560234,3195.8,3195.1,3.2078]
[1736866589920,8.67270624,3196.4,3195.5,3.2078]
[1736866590321,3.28292091,3195.8,3195.5,3.2078]
[1736866590526,3.28292091,3196.3,3195.5,44.0078]
[1736866590822,3.28292091,3195.8,3195.5,3.2078]
[1736866591229,8.67270624,3196.4,3195.5,3.2078]
[1736866591426,8.67270624,3196.4,3195.6,40.8]
[1736866591620,8.67270624,3196.4,3195.9,3.2078]
[1736866591621,3.47766438,3196.3,3195.9,3.2078]
[1736866592326,3.47766438,3196.3,3196.0,0.313]
[1736866592536,6.52610624,3197.2,3196.0,3.31830624]
[1736866592732,6.52610624,3197.2,3196.4,3.2078]
[1736866593030,3.44409385,3197.1,3196.4,3.2078]
[1736866593832,0.9758,3197.5,3196.8,3.2078]
[1736866594130,3.59269008,3197.1,3196.8,3.2078]
[1736866594425,3.31830624,3197.2,3196.8,3.2078]
[1736866594628,3.45068156,3197.1,3196.8,3.2078]
[1736866594825,3.5207,3197.0,3196.2,3.2078]
[1736866595026,3.2078,3197.0,3196.2,3.2078]
[1736866595227,3.50087828,3196.9,3196.2,3.2078]
[1736866597333,0.9758,3197.5,3196.6,3.2078]
[1736866597834,3.46606612,3197.4,3196.6,3.2078]
[1736866598736,3.46606612,3197.4,3197.0,3.2078]
[1736866600231,3.31830624,3197.2,3197.0,3.2078]
[1736866600635,3.55078502,3197.1,3197.0,3.2078]
[1736866602128,0.4988,3197.5,3197.0,3.2078]
[1736866602335,3.45053599,3197.3,3197.0,3.2078]
[1736866602538,3.53815547,3197.4,3197.0,3.2078]
[1736866602846,0.4988,3197.5,3197.0,3.2078]
[1736866603148,3.53815547,3197.4,3197.0,3.2078]
[1736866603638,3.53815547,3197.4,3196.6,3.2078]
[1736866603846,3.53815547,3197.4,3196.0,3.84100624]
[1736866603847,0.31289,3197.1,3196.2,3.2078]
[1736866604342,6.52610624,3197.2,3196.2,3.2078]
[1736866604343,3.99560068,3197.0,3196.2,3.2078]
[1736866604641,0.5193,3197.0,3196.2,3.2078]
[1736866605142,3.47630068,3196.9,3196.2,3.2078]
[1736866605442,3.2078,3197.2,3196.7,3.2078]
[1736866605638,0.4988,3197.5,3196.7,3.2078]
[1736866605840,3.3805615,3196.9,3196.7,3.2078]
[1736866606149,3.3805615,3197.4,3196.7,3.2078]
[1736866606445,0.4988,3197.5,3196.7,3.2078]
[1736866606643,3.2078,3197.2,3196.7,3.2078]
[1736866606837,0.31289,3197.1,3196.3,3.2078]
[1736866607037,4.03873624,3197.1,3196.3,3.2078]
[1736866607243,4.03873624,3197.1,3191.5,14.67730947]
[1736866607244,3.31830624,3196.4,3195.8,3.2078]
[1736866607547,0.5053,3196.3,3195.8,3.2078]
[1736866607745,4.08309777,3196.3,3195.8,3.2078]
[1736866610942,3.63130624,3196.0,3195.8,3.2078]
[1736866611447,3.43335473,3195.9,3195.8,3.2078]
[1736866611747,3.43335473,3195.9,3195.3,40.8]
[1736866611940,3.31830624,3195.6,3195.0,3.2078]
[1736866612141,0.4974,3195.5,3195.0,3.2078]
[1736866612349,0.31306,3195.3,3195.0,3.2078]
[1736866612749,3.53007318,3195.2,3195.0,3.2078]
[1736866613045,4.8708,3195.4,3195.0,3.2078]
[1736866613246,3.84314318,3195.3,3195.0,3.2078]
[1736866613453,0.31307,3195.3,3195.0,3.2078]
[1736866613747,3.78331251,3195.2,3195.0,3.2078]
[1736866614750,3.78331251,3195.2,3194.2,40.8]
[1736866614751,3.78331251,3195.2,3194.4,3.2078]
[1736866615351,4.09638251,3195.2,3194.4,3.2078]
[1736866615851,3.78331251,3195.2,3194.4,3.2078]
[1736866616050,4.09639251,3195.2,3194.4,3.2078]
[1736866616253,3.78331251,3195.2,3194.4,3.2078]
[1736866616552,3.27991251,3195.2,3194.8,3.2078]
[1736866617049,1.663,3195.4,3194.8,3.2078]
[1736866617248,3.2078,3195.8,3195.2,3.2078]
[1736866617454,0.4973,3196.2,3195.6,3.2078]
[1736866617654,3.2078,3196.3,3195.6,3.2078]
[1736866617852,3.4991849,3196.1,3195.7,0.5347]
[1736866618047,3.4991849,3196.2,3195.8,40.8]
[1736866618256,1.0174,3196.7,3195.8,40.8]
[1736866618549,3.62071122,3196.2,3196.0,3.2078]
[1736866618953,1.0174,3196.7,3196.0,3.2078]
[1736866619257,3.62153998,3196.3,3196.0,3.2078]
[1736866619644,1.0174,3196.7,3196.0,3.2078]
[1736866620052,0.31295,3196.5,3196.0,3.2078]
[1736866620347,3.62153998,3196.6,3196.0,3.2078]
[1736866620348,0.31297,3196.3,3196.0,3.2078]
[1736866620550,0.31301,3195.9,3195.3,3.2078]
[1736866620854,0.31305,3195.4,3195.3,3.2078]
[1736866621155,3.52086,3195.4,3194.6,3.2078]
[1736866621344,6.46855576,3195.4,3194.6,3.2078]
[1736866621554,6.46855576,3195.4,3194.7,40.8]
[1736866621746,0.31306,3195.3,3194.7,40.8]
[1736866622153,3.49500374,3195.2,3194.7,40.8]
[1736866622550,3.89268126,3195.3,3194.7,40.8]
[1736866622853,0.31307,3195.3,3194.7,40.8]
[1736866623151,3.57961126,3195.2,3194.7,40.8]
[1736866623350,0.31309,3195.0,3194.6,3.2078]
[1736866623747,3.31830624,3194.7,3194.3,40.8]
[1736866623945,3.52093,3194.6,3193.9,3.2078]
[1736866624150,7.13460232,3194.6,3193.9,3.2078]
[1736866624456,6.82147232,3194.6,3193.9,3.2078]
[1736866624647,3.61367232,3194.6,3193.9,3.2078]
[1736866624845,0.31308,3195.2,3194.3,3.2078]
[1736866625049,3.84580624,3195.5,3194.7,3.2078]
[1736866625252,22.65512818,3199.1,3194.9,3.63139624]
[1736866625253,3.4935201,3195.1,3194.9,3.63139624]
[1736866625459,0.5275,3196.6,3195.0,8.05080624]
[1736866625752,3.4935201,3196.3,3195.9,3.2078]
[1736866626462,0.31298,3196.2,3195.7,40.8]
[1736866626851,0.31301,3195.9,3195.7,40.8]
[1736866627050,6.52610624,3196.2,3195.7,40.8]
[1736866627354,3.61871788,3195.8,3195.0,4.2277]
[1736866627554,3.77232067,3196.1,3195.0,4.2277]
[1736866627754,3.2078,3196.2,3195.4,3.2078]
[1736866627755,3.45933067,3196.0,3195.4,3.2078]
[1736866627954,3.2078,3196.2,3195.4,3.2078]
[1736866628152,3.45933067,3196.1,3195.4,3.2078]
[1736866628357,3.52079,3196.2,3195.4,3.2078]
[1736866628756,3.2078,3195.8,3195.1,40.8]
[1736866628949,0.31308,3195.2,3194.8,3.2078]
[1736866629259,0.3131,3194.9,3194.3,3.2078]
[1736866629551,3.40839588,3194.8,3194.3,3.2078]
[1736866629959,3.40839588,3194.9,3194.3,3.2078]
[1736866630162,3.40839588,3194.9,3194.2,40.8]
[1736866630163,3.40839588,3194.9,3194.7,3.2078]
[1736866630458,1.635,3195.2,3194.7,3.2078]
[1736866630956,1.635,3195.2,3194.3,3.2078]
[1736866630957,3.38207808,3195.1,3194.3,3.2078]
[1736866631257,3.69516808,3195.1,3194.3,3.2078]
[1736866632350,3.38207808,3195.1,3194.3,3.2078]
[1736866634363,0.31309,3195.0,3194.3,3.2078]
[1736866634857,3.38424794,3194.9,3194.3,3.2078]
[1736866635361,3.38424794,3195.0,3194.3,3.2078]
[1736866635660,1.635,3195.2,3194.3,3.2078]
[1736866635866,3.34110084,3194.9,3194.3,3.2078]
[1736866636162,3.34110084,3195.0,3194.3,3.2078]
[1736866636363,1.635,3195.2,3194.3,3.2078]
[1736866636564,3.42730788,3194.9,3194.3,3.2078]
[1736866637065,0.80687,3195.3,3194.3,3.2078]
[1736866637361,3.55115488,3195.2,3194.3,3.2078]
[1736866638366,3.55115488,3195.2,3194.3,3.6986]